bitfinex-derivatives/quotes_SOLF0:USTF0_20251119
["timestamp","ask_amount","ask_price","bid_price","bid_amount"]
[1763543217206,2.92873636,139.29,139.26,3.12613449]
[1763543217601,2.88,139.28,139.26,0.04613449]
[1763543217806,2.92873636,139.29,139.26,0.04613449]
[1763543218007,8.38584283,139.29,139.26,0.04613449]
[1763543218319,2.92873636,139.29,139.26,0.04613449]
[1763543218912,8.40251995,139.29,139.26,0.04613449]
[1763543219827,5.47378359,139.28,139.26,0.04613449]
[1763543220014,0.04873636,139.29,139.27,3.08]
[1763543220814,0.04873636,139.29,139.28,9.5454]
[1763543221018,5.47494364,139.33,139.29,3.08]
[1763543221218,5.47494364,139.32,139.29,3.08]
[1763543221426,5.47494364,139.34,139.29,3.08]
[1763543221621,5.47494364,139.33,139.29,3.08]
[1763543221820,5.47494364,139.34,139.31,9.5438]
[1763543222120,5.47494364,139.33,139.31,9.59214266]
[1763543223219,5.47494364,139.33,139.32,3.08]
[1763543223409,5.52838193,139.34,139.33,3.08]
[1763543223610,0.05343829,139.34,139.33,3.08]
[1763543224431,6.63066441,139.42,139.35,3.08]
[1763543224624,28.20946441,139.43,139.36,3.08]
[1763543225122,2.93,139.41,139.37,9.5411]
[1763543225317,0.05357373,139.4,139.38,0.04732283]
[1763543227123,0.05357373,139.4,139.38,3.12732283]
[1763543227825,0.05357373,139.4,139.38,9.58792283]
[1763543228121,0.05357373,139.4,139.39,3.13]
[1763543231623,0.05357373,139.4,139.39,18.23]
[1763543231920,0.05357373,139.4,139.38,9.63792283]
[1763543232428,0.05357373,139.4,139.39,3.13]
[1763543233714,2.95,139.45,139.39,9.5901]
[1763543234121,2.95,139.45,139.39,3.13]
[1763543234325,2.95,139.48,139.41,3.13]
[1763543234719,0.05406633,139.46,139.44,3.13]
[1763543235121,0.05406633,139.46,139.43,3.1811599]
[1763543235319,3.00406633,139.46,139.43,3.1811599]
[1763543235624,3.00406633,139.46,139.43,0.0511599]
[1763543236827,6.4576,139.45,139.43,0.0511599]
[1763543237036,2.95,139.44,139.43,0.0511599]
[1763543237222,3.00406633,139.46,139.43,0.0511599]
[1763543237423,0.05406633,139.46,139.43,3.1811599]
[1763543238029,0.05406633,139.46,139.44,9.5879]
[1763543240925,0.05406633,139.46,139.45,3.13]
[1763543248140,5.30674199,139.51,139.48,3.04]
[1763543248439,2.94,139.52,139.48,3.04]
[1763543248635,5.30674199,139.54,139.49,3.04]
[1763543248835,8.24674199,139.54,139.49,3.04]
[1763543249340,2.99350224,139.53,139.5,0.04617674]
[1763543249636,8.30024423,139.53,139.5,0.04617674]
[1763543249934,2.99350224,139.53,139.5,0.04617674]
[1763543250132,9.44720224,139.53,139.5,0.04617674]
[1763543251328,2.99350224,139.53,139.5,0.04617674]
[1763543252340,9.44720224,139.53,139.5,0.04617674]
[1763543252539,2.99350224,139.53,139.5,0.04617674]
[1763543253041,9.44710224,139.53,139.5,0.04617674]
[1763543253243,2.99350224,139.53,139.5,3.08617674]
[1763543256233,0.05350224,139.53,139.51,3.04]
[1763543257836,0.05350224,139.53,139.51,9.4945]
[1763543258338,0.05350224,139.53,139.52,3.12]
[1763543259832,5.29626855,139.57,139.54,3.12]
[1763543260037,14.82915264,139.59,139.54,3.12]
[1763543260341,2.92,139.58,139.54,3.12]
[1763543260746,0.04971676,139.57,139.55,3.12]
[1763543260939,0.04971676,139.57,139.55,3.17032972]
[1763543261751,2.96971676,139.57,139.55,0.05032972]
[1763543261942,8.26598531,139.57,139.55,0.05032972]
[1763543262338,5.34598531,139.57,139.55,3.17032972]
[1763543264050,11.79778531,139.57,139.55,3.17032972]
[1763543264240,5.29626855,139.56,139.55,3.17032972]
[1763543264547,14.66846855,139.56,139.55,0.05032972]
[1763543265745,21.28135264,139.56,139.55,0.05032972]
[1763543266348,14.66846855,139.56,139.55,0.05032972]
[1763543267355,2.92,139.55,139.49,18.18]
[1763543267553,5.29626855,139.54,139.5,3.12]
[1763543267758,2.92,139.52,139.47,3.12]
[1763543267959,5.29626855,139.52,139.47,3.12]
[1763543268259,5.34779388,139.51,139.49,3.12]
[1763543268460,0.05152533,139.51,139.49,3.12]
[1763543268651,5.29626855,139.5,139.49,3.12]
[1763543269856,5.34779388,139.51,139.49,3.12]
[1763543270052,0.05152533,139.51,139.49,3.12]
[1763543270257,5.34779388,139.51,139.49,3.12]
[1763543270456,0.05152533,139.51,139.49,3.12]
[1763543270660,5.34779388,139.51,139.49,3.12]
[1763543270861,0.05152533,139.51,139.49,3.12]
[1763543271061,5.34779388,139.51,139.49,3.12]
[1763543271261,5.29626855,139.5,139.49,3.12]
[1763543276464,2.92,139.49,139.48,0.04932882]
[1763543276666,5.29626855,139.49,139.48,0.04932882]
[1763543276860,5.29626855,139.5,139.48,0.04932882]
[1763543277067,5.29626855,139.49,139.48,0.04932882]
[1763543279158,5.29626855,139.49,139.48,3.16932882]
[1763543279457,5.29626855,139.5,139.48,9.62502882]
[1763543279658,5.29626855,139.49,139.48,9.62502882]
[1763543279960,5.29626855,139.5,139.48,9.62502882]
[1763543281375,2.92,139.49,139.48,6.50502882]
[1763543282378,8.21626855,139.5,139.48,6.50502882]
[1763543282668,5.29626855,139.5,139.48,9.62502882]
[1763543283373,0.05152533,139.51,139.49,9.5751]
[1763543284769,0.05152533,139.51,139.5,3.12]
[1763543285667,5.29626855,139.54,139.52,3.12]
[1763543285869,2.92,139.54,139.52,3.12]
[1763543286067,5.29626855,139.53,139.51,6.4544]
[1763543286268,5.29626855,139.54,139.51,9.5744]
[1763543286574,8.21626855,139.53,139.51,0.04551296]
[1763543287272,8.21626855,139.53,139.51,3.16551296]
[1763543287474,5.29626855,139.52,139.51,3.16551296]
[1763543287779,2.94,139.52,139.51,0.04551296]
[1763543288075,8.23626855,139.52,139.51,0.04551296]
[1763543288372,5.29626855,139.53,139.51,3.08551296]
[1763543288576,8.23626855,139.52,139.51,0.04551296]
[1763543288963,2.94,139.52,139.51,0.04551296]
[1763543289174,8.23626855,139.52,139.51,0.04551296]
[1763543295076,5.29626855,139.52,139.51,0.04551296]
[1763543295672,8.23626855,139.52,139.51,0.04551296]
[1763543296583,5.29626855,139.52,139.51,6.50001296]
[1763543298178,5.29626855,139.52,139.51,9.54001296]
[1763543299186,5.29626855,139.53,139.52,9.4941]
[1763543299689,0.04574768,139.54,139.53,3.04]
[1763543299890,6.64295298,139.57,139.54,3.04]
[1763543300091,6.64295298,139.58,139.54,3.04]
[1763543300485,6.64295298,139.58,139.56,9.492]
[1763543300691,2.94,139.59,139.56,9.492]
[1763543300891,2.98741729,139.59,139.56,9.53780418]
[1763543301088,2.98741729,139.59,139.57,6.4517]
[1763543302788,2.98741729,139.59,139.57,3.22]
[1763543302989,0.04741729,139.59,139.58,6.4513]
[1763543303589,0.04741729,139.59,139.58,9.6713]
[1763543307099,2.95,139.63,139.58,18.28]
[1763543307593,2.95,139.63,139.58,3.22]
[1763543307792,2.95,139.63,139.55,102.30003498]
[1763543307993,3.00155435,139.6,139.58,6.49928876]
[1763543308492,0.05155435,139.6,139.58,9.71928876]
[1763543309494,0.05155435,139.6,139.58,3.26798876]
[1763543309699,3.00155435,139.6,139.58,0.04798876]
[1763543309900,0.05155435,139.6,139.58,3.26798876]
[1763543310400,0.05155435,139.6,139.58,9.71918876]
[1763543310700,0.05155435,139.6,139.59,3.22]
[1763543312087,0.05155435,139.6,139.58,6.49918876]
[1763543312291,0.05155435,139.6,139.58,0.04798876]
[1763543312292,3.00155435,139.6,139.58,0.04798876]
[1763543313096,9.45195435,139.6,139.58,0.04798876]
[1763543313296,2.95,139.59,139.58,0.04798876]
[1763543313497,6.50195435,139.6,139.58,0.04798876]
[1763543313498,0.05155435,139.6,139.58,0.04798876]
[1763543313803,3.00155435,139.6,139.58,0.04798876]
[1763543318600,3.00155435,139.6,139.58,6.49928876]
[1763543318904,0.05155435,139.6,139.59,3.05]
[1763543319810,3.00155435,139.6,139.58,0.04798876]
[1763543321605,3.00155435,139.6,139.58,9.54928876]
[1763543321796,0.05155435,139.6,139.58,9.54928876]
[1763543323007,0.05155435,139.6,139.59,9.5008]
[1763543324401,0.05155435,139.6,139.58,6.49928876]
[1763543324710,0.05155435,139.6,139.59,3.05]
[1763543326513,3.00155435,139.6,139.58,0.04798876]
[1763543328411,3.00155435,139.6,139.58,9.54928876]
[1763543329103,3.00155435,139.6,139.58,0.04798876]
[1763543331908,1.92783498,139.59,139.53,0.89]
[1763543332211,2.95,139.58,139.53,0.89]
[1763543332620,2.95,139.57,139.53,3.94]
[1763543333013,2.99990536,139.56,139.54,0.05157634]
[1763543338019,0.04990536,139.56,139.55,3.05]
[1763543339120,0.04990536,139.56,139.54,9.55467634]
[1763543340020,0.04990536,139.56,139.55,3.05]
[1763543343919,2.99990536,139.56,139.54,0.05157634]
[1763543344524,8.13592035,139.56,139.54,0.05157634]
[1763543344724,5.13601499,139.55,139.54,0.05157634]
[1763543345119,8.13592035,139.56,139.54,0.05157634]
[1763543345327,2.99990536,139.56,139.54,0.05157634]
[1763543346320,2.99990536,139.56,139.54,9.55467634]
[1763543346321,0.04990536,139.56,139.54,9.55467634]
[1763543346720,0.04990536,139.56,139.55,3.05]
[1763543347225,0.04990536,139.56,139.55,9.5027]
[1763543349027,9.58295298,139.62,139.58,2.99]
[1763543349236,2.94,139.62,139.58,2.99]
[1763543349526,2.94,139.62,139.55,2.99]
[1763543349725,2.94,139.62,139.56,6.4518]
[1763543350027,2.99336491,139.6,139.58,0.05003902]
[1763543350924,4.92119989,139.6,139.58,0.05003902]
[1763543351231,2.94,139.59,139.58,0.05003902]
[1763543354229,2.99336491,139.6,139.58,0.05003902]
[1763543354929,2.99336491,139.6,139.58,3.04003902]
[1763543355129,0.05336491,139.6,139.58,3.04003902]
[1763543355532,2.99336491,139.6,139.58,0.05003902]
[1763543360337,9.44376491,139.6,139.58,0.05003902]
[1763543360539,2.94,139.59,139.58,0.05003902]
[1763543362036,9.3908,139.59,139.58,0.05003902]
[1763543364136,2.94,139.59,139.58,0.05003902]
[1763543364729,9.58295298,139.59,139.58,0.05003902]
[1763543365327,16.03375298,139.59,139.58,0.05003902]
[1763543366739,9.3908,139.59,139.58,0.05003902]
[1763543373052,16.03375298,139.59,139.58,0.05003902]
[1763543373958,9.58295298,139.59,139.58,0.05003902]
[1763543374153,2.94,139.59,139.58,0.05003902]
[1763543375965,9.3908,139.59,139.58,0.05003902]
[1763543376166,16.03375298,139.59,139.58,0.05003902]
[1763543386969,9.58295298,139.59,139.58,0.05003902]
[1763543387275,0.05336491,139.6,139.58,3.28003902]
[1763543387675,3.00336491,139.6,139.58,0.05003902]
[1763543388664,3.00336491,139.6,139.58,3.28003902]
[1763543390882,3.00336491,139.6,139.58,0.05003902]
[1763543393178,3.00336491,139.6,139.58,3.28003902]
[1763543393379,0.05336491,139.6,139.58,3.28003902]
[1763543396882,3.00336491,139.6,139.58,3.28003902]
[1763543397082,0.05336491,139.6,139.58,3.28003902]
[1763543398684,3.00336491,139.6,139.58,3.28003902]
[1763543398884,3.00336491,139.6,139.58,0.05003902]
[1763543399383,9.64631789,139.6,139.58,0.05003902]
[1763543399579,2.95,139.59,139.58,0.05003902]
[1763543399775,9.4008,139.59,139.58,0.05003902]
[1763543400882,2.95,139.55,139.52,0.89]
[1763543401570,2.95,139.55,139.53,3.23]
[1763543401876,0.05309495,139.55,139.53,3.28299252]
[1763543403487,3.00309495,139.55,139.53,0.05299252]
[1763543403680,3.00309495,139.55,139.53,3.28299252]
[1763543405280,3.00309495,139.55,139.53,0.05299252]
[1763543405486,2.95,139.54,139.53,0.05299252]
[1763543407401,8.15026117,139.55,139.53,0.05299252]
[1763543407688,5.14716622,139.54,139.53,0.05299252]
[1763543408384,2.95,139.54,139.53,0.05299252]
[1763543414992,5.20026117,139.55,139.53,3.18299252]
[1763543415193,3.00309495,139.55,139.53,3.18299252]
[1763543415388,3.00309495,139.55,139.53,0.05299252]
[1763543416386,3.00309495,139.55,139.53,3.18299252]
[1763543416590,3.00309495,139.55,139.53,0.05299252]
[1763543416789,0.05309495,139.55,139.53,3.18299252]
[1763543417098,2.95,139.6,139.56,3.13]
[1763543417299,5.13739224,139.6,139.56,3.13]
[1763543417592,8.08739224,139.61,139.58,3.13]
[1763543418097,8.13400451,139.61,139.58,3.18146484]
[1763543420903,2.95,139.6,139.58,3.18146484]
[1763543421203,2.95,139.6,139.58,0.05146484]
[1763543423792,5.18400451,139.61,139.58,3.13146484]
[1763543424197,8.13400451,139.61,139.58,3.13146484]
[1763543426606,5.18400451,139.61,139.59,3.08]
[1763543427005,8.13400451,139.61,139.59,3.08]
[1763543427395,8.13400451,139.61,139.58,9.58246484]
[1763543429307,8.13400451,139.61,139.59,3.08]
[1763543429909,2.99661227,139.61,139.59,3.08]
[1763543430508,0.04661227,139.61,139.59,3.08]
[1763543431922,2.99661227,139.61,139.58,3.13146484]
[1763543432111,0.04661227,139.61,139.59,3.08]
[1763543432310,0.04661227,139.61,139.6,9.5304]
[1763543433507,0.04661227,139.61,139.6,11.45830663]
[1763543435921,0.04661227,139.61,139.6,3.08]
[1763543437717,2.99661227,139.61,139.59,2.96]
[1763543438021,2.99661227,139.61,139.58,3.01146484]
[1763543439217,2.99661227,139.61,139.58,9.46266484]
[1763543439424,2.99661227,139.61,139.59,2.96]
[1763543439716,0.04661227,139.61,139.59,2.96]
[1763543439920,2.99661227,139.61,139.59,2.96]
[1763543444420,2.99661227,139.61,139.59,9.4108]
[1763543444624,0.04661227,139.61,139.59,9.4108]
[1763543445123,2.99661227,139.61,139.59,9.4108]
[1763543445318,2.99661227,139.61,139.58,0.05146484]
[1763543446527,2.99661227,139.61,139.58,3.01146484]
[1763543449929,2.99661227,139.61,139.59,2.96]
[1763543450927,0.04661227,139.61,139.59,9.4108]
[1763543451928,2.99661227,139.61,139.59,9.4108]
[1763543452423,2.99661227,139.61,139.58,6.50276484]
[1763543452627,2.99661227,139.61,139.58,9.46276484]
[1763543453422,2.99661227,139.61,139.59,2.96]
[1763543456921,2.99661227,139.61,139.58,6.50276484]
[1763543457119,2.99661227,139.61,139.58,0.05146484]
[1763543457427,8.071824,139.6,139.58,0.05146484]
[1763543457623,2.95,139.59,139.58,0.05146484]
[1763543459028,9.4008,139.59,139.58,0.05146484]
[1763543459234,14.522624,139.59,139.58,0.05146484]
[1763543467439,16.45053063,139.59,139.58,0.05146484]
[1763543467649,2.9,139.58,139.51,3.01]
[1763543467942,2.9,139.56,139.51,3.01]
[1763543468139,2.9,139.54,139.51,3.01]
[1763543468328,8.021824,139.54,139.51,3.01]
[1763543468532,2.9,139.54,139.51,3.01]
[1763543468728,2.9,139.53,139.51,3.06387025]
[1763543468934,2.9516497,139.54,139.51,3.06387025]
[1763543469135,8.08956448,139.54,139.51,3.06387025]
[1763543469838,2.9516497,139.54,139.52,3.01]
[1763543470341,2.9516497,139.54,139.51,3.06387025]
[1763543470535,2.9516497,139.54,139.51,0.05387025]
[1763543471148,2.9516497,139.54,139.51,3.06387025]
[1763543471550,2.9,139.53,139.51,3.06387025]
[1763543473248,2.9516497,139.54,139.51,3.06387025]
[1763543473548,2.9516497,139.54,139.52,3.01]
[1763543473549,0.0516497,139.54,139.52,3.01]
[1763543474045,2.9516497,139.54,139.52,3.01]
[1763543474249,0.0516497,139.54,139.52,3.01]
[1763543474444,2.9516497,139.54,139.52,3.01]
[1763543475854,2.9516497,139.54,139.52,9.4641]
[1763543482063,2.9516497,139.54,139.51,3.06387025]
[1763543493266,2.9516497,139.54,139.52,2.99]
[1763543493765,0.0516497,139.54,139.52,2.99]
[1763543493969,0.0516497,139.54,139.53,2.99]
[1763543495056,0.0516497,139.54,139.53,9.4436]
[1763543496165,2.9,139.6,139.56,2.99]
[1763543497061,2.94553405,139.59,139.57,0.05400618]
[1763543497261,2.94553405,139.59,139.57,3.04400618]
[1763543497659,0.04553405,139.59,139.57,3.04400618]
[1763543498367,2.93553405,139.59,139.57,0.05400618]
[1763543499272,2.89,139.58,139.57,0.05400618]
[1763543514783,2.93553405,139.59,139.57,3.03400618]
[1763543518582,2.93553405,139.59,139.57,0.05400618]
[1763543521391,2.93553405,139.59,139.57,3.03400618]
[1763543526000,0.04553405,139.59,139.57,3.03400618]
[1763543526600,0.04553405,139.59,139.58,6.4513]
[1763543526791,0.04553405,139.59,139.58,2.98]
[1763543526995,2.93553405,139.59,139.57,0.05400618]
[1763543529508,0.04553405,139.59,139.58,3.17]
[1763543529802,2.94553405,139.59,139.57,9.67560618]
[1763543530311,0.04553405,139.59,139.58,3.17]
[1763543532308,2.94553405,139.59,139.57,9.67560618]
[1763543532508,2.94553405,139.59,139.57,6.50560618]
[1763543533105,2.94553405,139.59,139.57,9.67560618]
[1763543534305,0.04553405,139.59,139.58,9.6213]
[1763543540216,2.94553405,139.59,139.57,0.05400618]
[1763543541317,2.94553405,139.59,139.57,3.22400618]
[1763543551529,0.04553405,139.59,139.58,3.06]
[1763543552415,0.04553405,139.59,139.58,9.5113]
[1763543552615,9.60912981,139.63,139.59,3.06]
[1763543552926,1.92876776,139.68,139.63,3.06]
[1763543552927,6.70912981,139.65,139.63,3.06]
[1763543553122,2.9,139.68,139.64,3.06]
[1763543553518,2.9,139.68,139.66,3.06]
[1763543553725,2.95213952,139.68,139.66,0.04574505]
[1763543554221,2.9,139.72,139.68,3.06]
[1763543555124,2.94688546,139.71,139.68,3.06]
[1763543555328,2.94688546,139.71,139.68,3.10916633]
[1763543556433,0.04688546,139.71,139.69,3.06]
[1763543556828,0.04688546,139.71,139.7,3.06]
[1763543565934,2.93688546,139.71,139.68,3.22916633]
[1763543566154,2.93688546,139.71,139.68,0.04916633]
[1763543566331,2.89,139.7,139.68,0.04916633]
[1763543568242,2.89,139.7,139.68,3.22916633]
[1763543568641,2.89,139.7,139.68,0.04916633]
[1763543574342,2.93688546,139.71,139.68,3.22916633]
[1763543577953,0.04688546,139.71,139.69,3.18]
[1763543579356,0.04688546,139.71,139.7,5.10876776]
[1763543581857,2.93688546,139.71,139.68,3.22916633]
[1763543583554,2.89,139.7,139.68,0.04916633]
[1763543584961,9.3359,139.7,139.68,0.04916633]
[1763543585148,2.89,139.69,139.68,0.04916633]
[1763543585351,2.89,139.66,139.58,1.92876776]
[1763543585659,2.89,139.63,139.59,3.18]
[1763543585853,2.89,139.66,139.61,3.18]
[1763543586256,0.05323875,139.65,139.62,0.0534952]
[1763543586452,2.89,139.64,139.62,0.0534952]
[1763543590251,2.9,139.63,139.62,0.0534952]
[1763543593055,2.95323875,139.65,139.62,3.0134952]
[1763543597162,0.05323875,139.65,139.62,4.94226296]
[1763543597463,0.05323875,139.65,139.63,2.96]
[1763543599971,0.05323875,139.65,139.64,2.96]
[1763543600369,0.05323875,139.65,139.64,4.88876776]
[1763543600874,2.95323875,139.65,139.62,3.0134952]
[1763543601175,2.95323875,139.65,139.62,9.4634952]
[1763543601373,2.95323875,139.65,139.62,3.0134952]
[1763543601568,2.95323875,139.65,139.62,0.0534952]
[1763543602969,2.95323875,139.65,139.62,3.0134952]
[1763543605572,2.9,139.64,139.62,0.0534952]
[1763543606778,9.3492,139.64,139.62,0.0534952]
[1763543606988,2.9,139.63,139.62,0.0534952]
[1763543607280,2.9,139.6,139.57,3.07]
[1763543608285,0.05000382,139.6,139.57,3.11726805]
[1763543609778,2.95000382,139.6,139.57,3.11726805]
[1763543611984,0.05000382,139.6,139.57,3.11726805]
[1763543615792,2.95000382,139.6,139.57,3.11726805]
[1763543618690,2.95000382,139.6,139.58,3.18]
[1763543618983,0.05000382,139.6,139.58,3.18]
[1763543621494,0.05000382,139.6,139.58,9.6319]
[1763543621895,0.05000382,139.6,139.59,3.18]
[1763543625882,0.05000382,139.6,139.59,9.6315]
[1763543632503,6.6675855,139.64,139.63,3.18]
[1763543632802,2.9,139.67,139.63,3.18]
[1763543633002,2.9,139.66,139.63,3.18]
[1763543633600,2.9467878,139.66,139.63,3.22744071]
[1763543633998,0.0467878,139.66,139.63,3.22744071]
[1763543635107,0.0467878,139.66,139.63,9.67694071]
[1763543635503,2.9467878,139.66,139.63,3.22744071]
[1763543636009,0.0467878,139.66,139.64,3.18]
[1763543638318,2.9467878,139.66,139.64,3.18]
[1763543638507,2.9467878,139.66,139.63,0.04744071]
[1763543638702,2.9,139.65,139.63,0.04744071]
[1763543638920,2.9,139.65,139.63,3.22744071]
[1763543640614,0.0467878,139.66,139.63,3.22744071]
[1763543641705,2.9467878,139.66,139.63,3.22744071]
[1763543646714,0.0467878,139.66,139.63,6.49704071]
[1763543646916,0.0467878,139.66,139.64,3.18]
[1763543648114,9.5675855,139.71,139.66,3.13]
[1763543648314,2.9,139.71,139.66,3.13]
[1763543649119,0.05356755,139.7,139.68,3.13]
[1763543654225,0.05356755,139.7,139.67,0.04715685]
[1763543654226,2.95356755,139.7,139.67,0.04715685]
[1763543655927,2.9,139.69,139.67,0.04715685]
[1763543660126,0.05356755,139.7,139.67,3.17715685]
[1763543660428,2.95356755,139.7,139.67,3.17715685]
[1763543663032,2.95356755,139.7,139.67,0.04715685]
[1763543663331,0.05356755,139.7,139.67,3.15715685]
[1763543663534,2.94356755,139.7,139.67,3.15715685]
[1763543663928,2.94356755,139.7,139.67,0.04715685]
[1763543664136,9.38996755,139.7,139.67,0.04715685]
[1763543664329,17.89,139.69,139.63,3.11]
[1763543664534,2.89,139.67,139.63,3.11]
[1763543664728,6.6675855,139.68,139.62,3.11]
[1763543664729,2.89,139.65,139.62,3.11]
[1763543665435,2.94315001,139.65,139.62,3.15671434]
[1763543669040,2.94315001,139.65,139.63,3.11]
[1763543672943,0.05315001,139.65,139.63,3.11]
[1763543673247,0.05315001,139.65,139.64,3.11]
[1763543673742,0.05315001,139.65,139.64,9.5592]
[1763543676036,17.89,139.69,139.65,3.11]
[1763543676237,17.89,139.69,139.66,3.11]
[1763543676437,15.0,139.69,139.66,3.11]
[1763543676638,15.0,139.69,139.66,6.4482]
[1763543676939,15.0,139.69,139.67,3.11]
[1763543677138,15.05426269,139.69,139.67,3.11]
[1763543678647,0.05426269,139.69,139.67,5.03718921]
[1763543678838,9.5575855,139.74,139.68,3.1]
[1763543679038,2.89,139.73,139.71,3.1]
[1763543679839,2.89,139.73,139.71,3.14708706]
[1763543679840,2.93644274,139.73,139.71,3.14708706]
[1763543683446,2.93644274,139.73,139.71,5.07427627]
[1763543684748,2.93644274,139.73,139.71,3.14708706]
[1763543689753,0.04644274,139.73,139.71,3.14708706]
[1763543691753,0.04644274,139.73,139.72,3.1]
[1763543693638,0.04644274,139.73,139.72,9.5455]
[1763543694051,0.04644274,139.73,139.72,11.47268921]
[1763543694256,2.89,139.77,139.74,3.1]
[1763543694451,6.6765256,139.79,139.75,3.1]
[1763543694655,9.5665256,139.8,139.77,3.1]
[1763543694850,2.89,139.79,139.77,3.1]
[1763543695250,2.92980488,139.79,139.77,3.15513498]
[1763543696857,0.03980488,139.79,139.77,3.15513498]
[1763543698056,2.92980488,139.79,139.77,3.15513498]
[1763543698946,0.03980488,139.79,139.78,3.1]
[1763543699546,2.89,139.83,139.79,3.1]
[1763543700555,9.3304,139.83,139.77,9.59823498]
[1763543700857,2.89,139.82,139.78,3.1]
[1763543705460,4.81718921,139.81,139.77,0.05513498]
[1763543705659,2.89,139.8,139.77,0.05513498]
[1763543705964,2.89,139.8,139.77,3.15513498]
[1763543706353,2.89,139.82,139.77,3.15513498]
[1763543707864,2.87,139.81,139.77,3.15513498]
[1763543709258,2.87,139.8,139.77,3.15513498]
[1763543709450,2.87,139.82,139.77,0.05513498]
[1763543709654,2.87,139.78,139.73,3.21]
[1763543709866,2.87,139.76,139.73,3.21]
[1763543710664,2.92243497,139.76,139.73,3.25572884]
[1763543711570,2.92243497,139.76,139.73,0.04572884]
[1763543711764,2.92243497,139.76,139.73,3.25572884]
[1763543713674,2.87,139.74,139.73,0.04572884]
[1763543713967,2.87,139.74,139.68,3.21]
[1763543714168,2.87,139.72,139.68,3.21]
[1763543715074,0.05170224,139.71,139.69,3.25875073]
[1763543728388,2.95170224,139.71,139.69,3.25875073]
[1763543729392,0.05170224,139.71,139.69,3.25875073]
[1763543741006,0.05170224,139.71,139.69,6.26706043]
[1763543741212,0.05170224,139.71,139.7,3.13]
[1763543741904,2.94170224,139.71,139.69,3.17875073]
[1763543742205,2.94170224,139.71,139.69,0.04875073]
[1763543743904,9.38760224,139.71,139.69,0.04875073]
[1763543744411,2.89,139.7,139.69,0.04875073]
[1763543744612,2.89,139.69,139.65,3.13]
[1763543745711,2.89,139.69,139.66,0.05026843]
[1763543746226,2.89,139.69,139.6,3.13]
[1763543746227,6.4483,139.66,139.6,3.13]
[1763543746415,2.89,139.68,139.6,3.13]
[1763543746416,2.89,139.64,139.6,3.13]
[1763543747319,21.4287,139.65,139.61,3.18099173]
[1763543747320,2.94460201,139.63,139.61,3.18099173]
[1763543747812,0.05460201,139.63,139.61,3.18099173]
[1763543752630,2.94460201,139.63,139.61,3.18099173]
[1763543753318,0.05460201,139.63,139.61,3.18099173]
[1763543756129,2.94460201,139.63,139.61,3.18099173]
[1763543756826,0.05460201,139.63,139.61,3.18099173]
[1763543759331,0.05460201,139.63,139.62,3.13]
[1763543760626,2.94460201,139.63,139.61,3.18099173]
[1763543760925,0.05460201,139.63,139.61,3.18099173]
[1763543763322,2.94460201,139.63,139.61,3.18099173]
[1763543763528,9.39440201,139.63,139.61,0.05099173]
[1763543764133,9.39440201,139.63,139.61,3.18099173]
[1763543764435,0.05460201,139.63,139.61,3.18099173]
[1763543768535,0.05460201,139.63,139.62,9.7201]
[1763543769036,0.05460201,139.63,139.62,3.27]
[1763543773542,2.95460201,139.63,139.61,0.05099173]
[1763543774844,2.9,139.62,139.61,0.05099173]
[1763543776851,9.3501,139.62,139.61,0.05099173]
[1763543778231,2.9,139.62,139.61,0.05099173]
[1763543778441,2.95460201,139.63,139.61,0.05099173]
[1763543778638,2.9,139.62,139.61,0.05099173]
[1763543782150,9.3501,139.62,139.61,0.05099173]
[1763543782652,15.05460201,139.63,139.55,3.27]
[1763543782653,2.9,139.6,139.55,3.27]
[1763543783736,2.9465363,139.59,139.56,3.08530008]
[1763543783949,0.0465363,139.59,139.56,3.08530008]
[1763543786848,2.9,139.58,139.56,3.08530008]
[1763543787155,2.9465363,139.59,139.56,3.08530008]
[1763543791862,0.0465363,139.59,139.56,3.08530008]
[1763543792761,0.0465363,139.59,139.56,5.014007]
[1763543792965,0.0465363,139.59,139.57,3.04]
[1763543793762,2.9465363,139.59,139.57,3.04]
[1763543794767,0.0465363,139.59,139.57,3.04]
[1763543797871,0.0465363,139.59,139.58,1.92870692]
[1763543798063,0.0465363,139.59,139.58,4.95870692]